fUST/lending_fUST_20250825
["ID","MTS","AMOUNT","RATE_DAILY","PERIOD"]
[381142948,1756073447853,-326.0,0.00035996,14]
[381142949,1756073447863,-326.0,0.00035996,14]
[381142950,1756073447872,-151.0,0.0003609,30]
[381142951,1756073447881,-178.290292,0.0003609,30]
[381142952,1756073447890,-151.0,0.0003609,30]
[381142953,1756073447899,-151.0,0.0003609,30]
[381142954,1756073447908,-151.0,0.0003609,30]
[381142955,1756073447917,-160.658675,0.0003609,30]
[381142956,1756073447927,-160.658675,0.0003609,30]
[381142957,1756073447936,-160.658675,0.0003609,30]
[381142958,1756073447945,-160.65867,0.0003609,30]
[381142959,1756073447956,-151.0,0.0003609,30]
[381142960,1756073447965,-151.0,0.0003609,30]
[381142961,1756073447974,-151.0,0.0003609,30]
[381142962,1756073447984,-151.0,0.0003609,30]
[381142963,1756073447993,-151.0,0.0003609,30]
[381142964,1756073448002,-151.0,0.0003609,30]
[381142965,1756073448011,-264.283309,0.0003609,30]
[381142966,1756073448020,-151.0,0.0003609,30]
[381142967,1756073448029,-151.0,0.0003609,30]
[381142968,1756073448039,-245.0,0.0003609,30]
[381142969,1756073448048,-151.0,0.0003609,30]
[381142970,1756073448057,-151.0,0.0003609,30]
[381142971,1756073448066,-151.0,0.0003609,30]
[381142972,1756073448075,-151.0,0.0003609,30]
[381142973,1756073448085,-161.151143,0.0003609,30]
[381142974,1756073448094,-154.843875,0.0003609,30]
[381142975,1756073448103,-151.0,0.0003609,30]
[381142976,1756073448112,-151.0,0.0003609,30]
[381142977,1756073448122,-151.0,0.0003609,30]
[381142978,1756073448131,-417.15472785,0.000361,30]
[381142979,1756073448140,-500.0,0.00036164,120]
[381142980,1756073448150,-5719.51,0.000362,14]
[381142981,1756073448159,-151.0,0.000362,30]
[381142982,1756073448169,-151.0,0.000362,30]
[381142983,1756073448178,-151.0,0.000362,30]
[381142984,1756073448188,-151.0,0.000362,30]
[381142985,1756073448198,-151.0,0.000362,30]
[381142986,1756073448207,-255.311303,0.000362,30]
[381142987,1756073448216,-160.37027,0.000362,30]
[381142988,1756073448226,-160.37027,0.000362,30]
[381142989,1756073448235,-151.0,0.000362,30]
[381142990,1756073448402,-160.37027,0.000362,30]
[381142991,1756073448412,-160.37027,0.000362,30]
[381142992,1756073448424,-160.0,0.000362,30]
[381142993,1756073448434,-169.08,0.000369,7]
[381142994,1756073448444,-3494.63,0.000369,7]
[381142995,1756073448453,-785.64107222,0.00037166,28]
[381142996,1756073448463,-200.0,0.00037188,120]
[381142997,1756073448473,-151.0,0.000375,120]
[381142998,1756073448483,-232.42214577,0.00037524,7]
[381142999,1756073448493,-823.0,0.00037546,2]
[381143000,1756073448503,-500.0,0.00037808,120]
[381143001,1756073448513,-857.09568247,0.00038238,2]
[381143002,1756073448523,-470.602101,0.0003871,2]
[381143003,1756073448533,-785.64107222,0.00038892,32]
[381143004,1756073448545,-500.0,0.00038929,7]
[381143005,1756073448555,-2960.39939261,0.00039118,2]
[381143006,1756073448565,-500.0,0.00039169,7]
[381143007,1756073448575,-393.0,0.00039272,2]
[381143008,1756073448585,-500.0,0.00039452,120]
[381143009,1756073448594,-392.0,0.0003961,2]
[381143010,1756073448604,-393.0,0.00039626,120]
[381143011,1756073448613,-315.935295,0.00039654,2]
[381143012,1756073448623,-392.0,0.00039662,2]
[381143013,1756073448632,-392.0,0.00039836,7]
[381143014,1756073448642,-647.66914228,0.00039842,8]
[381143015,1756073448652,-5722.34993462,0.00039873,10]
[381143016,1756073448661,-14108.9,0.0004,14]
[381143017,1756073448671,-250.0,0.0004,120]
[381143018,1756073448681,-393.0,0.00040172,7]
[381143019,1756073448691,-500.0,0.00040177,30]
[381143020,1756073448701,-5719.51,0.000403,14]
[381143021,1756073448710,-151.0,0.000403,30]
[381143022,1756073448720,-151.0,0.000403,30]
[381143023,1756073448730,-151.0,0.000403,30]
[381143024,1756073448739,-392.0,0.00040457,2]
[381143025,1756073448750,-1152.0,0.00040467,5]
[381143026,1756073448759,-392.0,0.00040491,2]
[381143027,1756073448769,-200.0,0.000405,120]
[381143028,1756073448778,-236.33244,0.000405,120]
[381143029,1756073448788,-200.0,0.000405,120]
[381143030,1756073448802,-785.64107222,0.00040619,36]
[381143031,1756073448812,-392.0,0.0004062,2]
[381143032,1756073448822,-151.0,0.000407,120]
[381143033,1756073448831,-393.0,0.00040781,7]
[381143034,1756073448840,-157.0,0.00041,90]
[381143035,1756073448849,-500.0,0.00041095,120]
[381143036,1756073448859,-500.0,0.00041096,31]
[381143037,1756073448868,-311.23122387,0.00041096,31]
[381143038,1756073448878,-3494.63,0.000411,7]
[381143039,1756073448888,-151.0,0.000411,120]
[381143040,1756073448898,-151.0,0.000411,120]
[381143041,1756073448907,-151.45715,0.000411,120]
[381143042,1756073448917,-392.0,0.00041182,2]
[381143043,1756073448926,-392.0,0.00041323,120]
[381143044,1756073448936,-157.0,0.0004137,90]
[381143045,1756073448945,-393.0,0.00041493,2]
[381143046,1756073448955,-392.0,0.00041922,2]
[381143047,1756073448964,-392.0,0.0004197,2]
[381143048,1756073448974,-393.0,0.00041972,2]
[381143049,1756073448983,-393.0,0.00042095,120]
[381143050,1756073448993,-250.0,0.00042132,2]
[381143051,1756073449003,-250.0,0.00042132,2]
[381143052,1756073449012,-250.0,0.00042132,2]
[381143053,1756073449022,-470.602101,0.00042134,2]
[381143054,1756073449033,-393.0,0.00042144,7]
[381143055,1756073449043,-151.0,0.00042169,120]
[381143056,1756073449053,-392.0,0.00042268,7]
[381143057,1756073449062,-213.138464,0.00042268,30]
[381143058,1756073449072,-151.0,0.00042268,120]
[381143059,1756073449082,-151.0,0.00042268,120]
[381143060,1756073449092,-151.0,0.00042268,120]
[381143061,1756073449102,-160.37027,0.00042268,120]
[381143062,1756073449112,-151.0,0.00042268,120]
[381143063,1756073449121,-160.37027,0.00042268,120]
[381143064,1756073449131,-160.37027,0.00042268,120]
[381143065,1756073449141,-160.370261,0.00042268,120]
[381143066,1756073449151,-785.64107222,0.00042345,39]
[381143067,1756073449162,-169.08,0.000424,14]
[381143068,1756073449172,-1000.0,0.00042465,15]
[381143069,1756073449182,-160.0,0.00042583,3]
[381143070,1756073449193,-392.0,0.00042647,7]
[381143071,1756073449203,-500.0,0.00042739,120]
[381143072,1756073449214,-392.0,0.00042765,2]
[381143073,1756073449226,-200.0,0.000428,120]
[381143074,1756073449239,-417.15472785,0.00043,120]
[381143075,1756073449249,-160.0,0.00043,120]
[381143076,1756073449258,-392.0,0.00043075,7]
[381143077,1756073449268,-392.0,0.00043087,2]
[381143078,1756073449277,-392.0,0.00043111,7]
[381143079,1756073449286,-393.0,0.00043128,2]
[381143080,1756073449296,-157.0,0.00043151,90]
[381143081,1756073449306,-500.0,0.00043252,30]
[381143082,1756073449315,-1613.0,0.00043615,5]
[381143083,1756073449324,-500.0,0.00043727,30]
[381143084,1756073449333,-907.21025597,0.00043835,120]
[381143085,1756073449347,-151.0,0.00044,120]
[381143086,1756073449357,-785.64107222,0.00044072,43]
[381143087,1756073449366,-312.569554,0.00044072,120]
[381143088,1756073449376,-312.569554,0.00044072,120]
[381143089,1756073449386,-312.569554,0.00044072,120]
[381143090,1756073449395,-312.569554,0.00044072,120]
[381143091,1756073449405,-300.912384,0.00044072,120]
[381143092,1756073449415,-151.699238,0.00044072,120]
[381143093,1756073449424,-151.0,0.00044072,120]
[381143094,1756073449435,-151.0,0.00044072,120]
[381143095,1756073449444,-151.0,0.00044072,120]
[381143096,1756073449454,-5719.51,0.000441,14]
[381143097,1756073449463,-262.705841,0.00044131,2]
[381143098,1756073449472,-500.0,0.00044383,120]
[381143099,1756073449482,-160.0,0.0004495,4]
[381143100,1756073449491,-500.0,0.00044957,30]
[381143101,1756073449500,-200.0,0.000451,120]
[381143102,1756073449509,-500.0,0.00045297,30]
[381143103,1756073449518,-154.229761,0.00045306,2]
[381143104,1756073449528,-157.0,0.00045308,90]
[381143105,1756073449537,-500.0,0.00045667,30]
[381143106,1756073449548,-500.0,0.00045671,30]
[381143107,1756073449558,-785.64107222,0.00045798,47]
[381143108,1756073449567,-154.229761,0.00045889,15]
[381143109,1756073449577,-637.37877658,0.00046027,120]
[381143110,1756073449586,-315.935295,0.00046143,2]
[381143111,1756073449595,-500.0,0.00046222,30]
[381143112,1756073449605,-1000.0,0.00046575,120]
[381143113,1756073449614,-300.0,0.00046575,120]
[381143114,1756073449623,-1021.15,0.00046602,120]
[381143115,1756073449632,-500.0,0.00046986,30]
[381143116,1756073449641,-732.0,0.00047007,5]
[381143117,1756073449651,-500.0,0.00047169,30]
[381143118,1756073449660,-151.0,0.000472,120]
[381143119,1756073449670,-1194.0379739,0.00047316,120]
[381143120,1756073449679,-160.0,0.00047318,5]
[381143121,1756073449688,-199.0,0.00047397,30]
[381143122,1756073449697,-3494.63,0.000474,7]
[381143123,1756073449707,-200.0,0.000474,120]
[381143124,1756073449717,-500.0,0.00047459,30]
[381143125,1756073449726,-156.957592,0.00047512,2]
[381143126,1756073449736,-785.64107222,0.00047525,50]
[381143127,1756073449746,-169.08,0.000476,14]
[381143128,1756073449755,-500.0,0.00047881,30]
[381143129,1756073449764,-7675.72100964,0.000479,2]
[381143130,1756073449774,-1000.0,0.00047999,120]
[381143131,1756073449783,-14108.9,0.00048,14]
[381143132,1756073449793,-151.0,0.00048,120]
[381143133,1756073449802,-151.452376,0.00048,120]
[381143134,1756073449812,-151.0,0.00048,120]
[381143135,1756073449820,-5719.51,0.00048,14]
[381143136,1756073449830,-1771.68288782,0.00048,60]
[381143137,1756073449839,-199.0,0.00048082,32]
[381143138,1756073449849,-563.06917217,0.00048146,30]
[381143139,1756073449858,-800.0,0.00048402,14]
[381143140,1756073449867,-852.66998134,0.00048407,14]
[381143141,1756073449877,-500.0,0.00048465,60]
[381143142,1756073449887,-194.47307488,0.0004863,120]
[381143143,1756073449896,-232.42214577,0.0004867,2]
[381143144,1756073449906,-217.07852671,0.0004867,2]
[381143145,1756073449915,-844.67759735,0.0004867,2]
[381143146,1756073449924,-151.0,0.0004868,120]
[381143147,1756073449934,-151.0,0.0004868,120]
[381143148,1756073449943,-151.0,0.0004868,120]
[381143149,1756073449952,-151.0,0.0004868,120]
[381143150,1756073449961,-312.569554,0.0004868,120]
[381143151,1756073449970,-312.569554,0.0004868,120]
[381143152,1756073449980,-312.569554,0.0004868,120]
[381143153,1756073449989,-312.569554,0.0004868,120]
[381143154,1756073449998,-151.0,0.0004868,120]
[381143155,1756073450008,-151.0,0.0004868,120]
[381143156,1756073450017,-162.425812,0.0004868,120]
[381143157,1756073450026,-151.0,0.0004868,120]
[381143158,1756073450035,-200.0,0.0004869,4]
[381143159,1756073450046,-400.0,0.0004869,120]
[381143160,1756073450055,-800.0,0.00048708,14]
[381143161,1756073450064,-160.0,0.00048723,2]
[381143162,1756073450073,-665.38277919,0.00048725,2]
[381143163,1756073450082,-154.229761,0.00048766,60]
[381143164,1756073450091,-199.0,0.00048767,34]
[381143165,1756073450100,-153.0,0.00048767,30]
[381143166,1756073450110,-153.0,0.00048767,30]
[381143167,1756073450119,-153.0,0.00048767,30]
[381143168,1756073450129,-153.0,0.00048767,30]
[381143169,1756073450138,-153.0,0.00048767,30]
[381143170,1756073450147,-154.0885349,0.00048767,30]
[381143171,1756073450156,-800.0,0.00048805,14]
[381143172,1756073450165,-800.0,0.00048844,14]
[381143173,1756073450174,-3993.95,0.0004887,120]
[381143174,1756073450183,-151.0,0.0004899,120]
[381143175,1756073450193,-151.0,0.0004899,120]
[381143176,1756073450202,-151.0,0.0004899,120]
[381143177,1756073450212,-151.0,0.0004899,120]
[381143178,1756073450221,-312.569554,0.0004899,120]
[381143179,1756073450231,-312.569554,0.0004899,120]
[381143180,1756073450240,-312.569554,0.0004899,120]
[381143181,1756073450249,-312.569554,0.0004899,120]
[381143182,1756073450258,-151.0,0.0004899,120]
[381143183,1756073450268,-174.166731,0.0004899,120]
[381143184,1756073450278,-1000.0,0.00048999,120]
[381143185,1756073450292,-82189.27197731,0.00049,120]
[381143186,1756073450302,-151.0,0.00049,120]
[381143187,1756073450311,-151.0,0.00049,120]
[381143188,1756073450320,-151.0,0.00049,120]
[381143189,1756073450329,-155.51568,0.00049,120]
[381143190,1756073450341,-312.569554,0.00049,120]
[381143191,1756073450353,-312.569554,0.00049,120]
[381143192,1756073450363,-312.569554,0.00049,120]
[381143193,1756073450372,-312.569559,0.00049,120]
[381143194,1756073450382,-500.0,0.00049007,30]
[381143195,1756073450392,-500.0,0.00049013,60]
[381143196,1756073450402,-1500.0,0.00049041,120]
[381143197,1756073450412,-1231.56,0.00049041,120]
[381143198,1756073450422,-151.0,0.00049095,120]
[381143199,1756073450432,-151.0,0.00049095,120]
[381143200,1756073450441,-1000.0,0.00049205,2]
[381143201,1756073450450,-5722.34993462,0.00049215,10]
[381143202,1756073450459,-500.0,0.00049239,18]
[381143203,1756073450470,-500.0,0.00049262,18]
[381143204,1756073450479,-151.0,0.00049285,120]
[381143205,1756073450488,-266.296,0.00049285,120]
[381143206,1756073450497,-1000.0,0.00049287,120]
[381143207,1756073450507,-150.0,0.000493,120]
[381143208,1756073450517,-1000.0,0.00049315,120]
[381143209,1756073450526,-609.32551782,0.00049315,120]
[381143210,1756073450535,-500.0,0.00049315,120]
[381143211,1756073450545,-500.0,0.00049315,120]
[381143212,1756073450555,-500.0,0.00049315,120]
[381143213,1756073450564,-500.0,0.00049315,120]
[381143214,1756073450574,-195.75744067,0.00049315,120]
[381143215,1756073450583,-7935.51,0.00049315,120]
[381143216,1756073450592,-7935.51,0.00049315,120]
[381143217,1756073450602,-7935.51,0.00049315,120]
[381143218,1756073450611,-7935.51,0.00049315,120]
[381143219,1756073450620,-7935.51,0.00049315,120]
[381143220,1756073450630,-7935.51,0.00049315,120]
[381143221,1756073450639,-7935.51,0.00049315,120]
[381143222,1756073450648,-7935.51,0.00049315,120]
[381143223,1756073450657,-7097.28664824,0.00049315,120]
[381143224,1756073451198,-838.22335176,0.00049315,120]
[381143225,1756073451207,-7935.51,0.00049315,120]
[381143226,1756073451216,-7935.51,0.00049315,120]
[381143227,1756073451226,-7935.51,0.00049315,120]
[381143228,1756073451235,-7935.51,0.00049315,120]
[381143229,1756073451244,-7935.51,0.00049315,120]
[381143230,1756073451254,-7935.51,0.00049315,120]
[381143231,1756073451263,-7935.51,0.00049315,120]
[381143232,1756073451274,-7935.51,0.00049315,120]
[381143233,1756073451283,-7935.51,0.00049315,120]
[381143234,1756073451295,-7935.51,0.00049315,120]
[381143235,1756073451304,-7935.51,0.00049315,120]
[381143236,1756073451313,-7935.51,0.00049315,120]
[381143237,1756073451323,-3477.82422904,0.00049315,120]
[381143238,1756073451670,-3668.71544186,0.00049315,120]
[381143239,1756073452037,-328.42957638,0.0003063,2]
[381143240,1756073452050,-775.57676558,0.0003063,2]
[381143241,1756073452063,-61.24983132,0.0003063,2]
[381143242,1756073452073,-213.97863159,0.00044,120]
[381143243,1756073453383,-0.56509823,0.00028433,10]
[381143245,1756073551450,816.96059264,0.000199,2]
[381143246,1756073551626,816.96059241,0.00021627,2]
[381143247,1756073551911,816.96059241,0.0002508,2]
[381143248,1756073552367,816.96059241,0.00023353,2]
[381143249,1756073554334,244.095347,0.00013699,2]
[381143250,1756073554550,244.095347,0.00020187,2]
[381143251,1756073554789,244.095347,0.00026676,2]
[381143252,1756073718932,841.47524909,0.000199,2]
[381143253,1756073719097,841.47524891,0.00026806,6]
[381143254,1756073719139,841.47524891,0.00023353,2]
[381143255,1756073719662,841.47524891,0.00021627,2]
[381143256,1756073810895,204.754365,0.00025778,2]
[381143257,1756073811221,188.45152806,0.00026044,2]
[381143260,1756073891158,849.36542771,0.000199,2]
[381143261,1756073891371,849.36542761,0.00021627,2]
[381143262,1756073891493,849.36542761,0.00026806,6]
[381143263,1756073891602,849.36542761,0.00023353,2]
[381143264,1756073891703,849.36542761,0.0002508,2]
[381143265,1756073987262,191.65478537,0.00026752,2]
[381143266,1756074072949,823.8885056,0.00021627,2]
[381143267,1756074073074,823.8885056,0.00026806,6]
[381143268,1756074073194,823.8885058,0.000199,2]
[381143269,1756074073325,823.8885056,0.0002508,2]
[381143270,1756074073560,823.8885056,0.00023353,2]
[381143271,1756074186706,20000.0,0.00030656,30]
[381143272,1756074255882,798.87620332,0.000199,2]
[381143273,1756074256351,798.87620332,0.0002508,2]
[381143274,1756074256673,798.87620332,0.00026806,6]
[381143275,1756074256897,798.87620332,0.00021627,2]
[381143279,1756074436130,827.0214448,0.000199,2]
[381143280,1756074436698,827.02144457,0.00026806,6]
[381143281,1756074436739,827.02144457,0.00023353,2]
[381143283,1756074442633,-198.43490177,0.00028433,10]
[381143284,1756074442664,-827.02144457,0.00028533,10]
[381143285,1756074442692,-827.02144457,0.00030259,13]
[381143286,1756074442714,-199.0,0.0003043,120]
[381143287,1756074442736,-400.0,0.00031852,2]
[381143288,1756074442756,-10000.0,0.00031853,2]
[381143289,1756074442783,-827.02144457,0.00031986,17]
[381143290,1756074442805,-244.095347,0.00033165,2]
[381143291,1756074442826,-160.474348,0.00033643,2]
[381143292,1756074442853,-827.02144457,0.00033712,21]
[381143293,1756074442876,-625.62436426,0.0003419,2]
[381143294,1756074442897,-560.0,0.00034263,2]
[381143295,1756074442916,-500.0,0.00034289,2]
[381143296,1756074442940,-500.0,0.00034289,7]
[381143297,1756074442961,-500.0,0.00034289,7]
[381143298,1756074442984,-500.0,0.00034289,7]
[381143299,1756074443006,-377.83818455,0.00034289,7]
[381143300,1756074443026,-23480.8203554,0.0003429,2]
[381143305,1756074522468,196.24699308,0.0002,120]
[381143306,1756074522840,150.999999,0.00030647,120]
[381143307,1756074524995,50014.09946453,0.0002,2]
[381143308,1756074526359,302.000001,0.00025,5]
[381143309,1756074592844,280.307055,0.00013699,2]
[381143310,1756074593080,280.307055,0.00020187,2]
[381143311,1756074593648,280.307055,0.00026676,2]
[381143312,1756074615514,948.21922733,0.000199,2]
[381143313,1756074615649,948.21922724,0.00021627,2]
[381143314,1756074615784,948.21922724,0.00026806,6]
[381143315,1756074615827,948.21922724,0.00023353,2]
[381143365,1756074632544,-485.27,0.00028533,10]
[381143366,1756074632555,-462.94922724,0.00028533,10]
[381143368,1756074632565,-1956.13673489,0.0002878,3]
[381143370,1756074632575,-160.0,0.00029,10]
[381143372,1756074632584,-515.1216964,0.0003,120]
[381143374,1756074632593,-375.50290563,0.0003,120]
[381143376,1756074632603,-417.00880825,0.0003,30]
[381143377,1756074632612,-466.936082,0.00030139,2]
[381143379,1756074632621,-948.21922724,0.00030259,13]
[381143382,1756074632630,-3814.89995642,0.00030545,2]
[381143385,1756074632639,-210.93,0.00030637,3]
[381143386,1756074632649,-632.81,0.00030637,3]
[381143387,1756074632658,-400.0,0.00030645,2]
[381143388,1756074632667,-429.45517796,0.00030645,20]
[381143392,1756074638383,-53880.93227995,0.00030645,20]
[381143393,1756074638404,-840340.73692449,0.00030645,20]
[381143394,1756074638414,-311.52527739,0.00030645,2]
[381143395,1756074638424,-380.78572021,0.00030645,5]
[381143396,1756074638435,-281.28500619,0.00030646,2]
[381143397,1756074638445,-500.0,0.00030646,2]
[381143398,1756074638455,-500.0,0.00030646,2]
[381143399,1756074638464,-500.0,0.00030646,2]
[381143400,1756074638474,-500.0,0.00030646,2]
[381143401,1756074638483,-500.0,0.00030646,2]
[381143402,1756074638492,-500.0,0.00030646,2]
[381143403,1756074638501,-500.0,0.00030646,2]
[381143404,1756074638513,-500.0,0.00030646,2]
[381143405,1756074638522,-500.0,0.00030646,2]
[381143406,1756074638531,-500.0,0.00030646,2]
[381143407,1756074638541,-500.0,0.00030646,2]
[381143408,1756074638550,-500.0,0.00030646,2]
[381143409,1756074638559,-153.09313162,0.00030646,2]
[381143410,1756074638569,-500.0,0.00030646,2]
[381143411,1756074638578,-286.87837887,0.00030646,2]
[381143412,1756074638587,-500.0,0.00030646,2]
[381143413,1756074638597,-500.0,0.00030646,2]
[381143414,1756074638606,-500.0,0.00030646,2]
[381143415,1756074638615,-500.0,0.00030646,2]
[381143416,1756074638625,-500.0,0.00030646,2]
[381143417,1756074638634,-500.0,0.00030646,2]
[381143418,1756074638644,-500.0,0.00030646,2]
[381143419,1756074638653,-500.0,0.00030646,2]
[381143420,1756074638662,-500.0,0.00030646,2]
[381143421,1756074638671,-500.0,0.00030646,2]
[381143422,1756074638682,-500.0,0.00030646,2]
[381143423,1756074638700,-500.0,0.00030646,2]
[381143424,1756074638715,-445.0,0.00030646,2]
[381143425,1756074638724,-1162.2334549,0.000307,30]
[381143426,1756074638734,-5719.51,0.000307,2]
[381143427,1756074638744,-14108.9,0.000307,7]
[381143428,1756074638754,-169.08,0.000307,7]
[381143429,1756074638766,-160.0,0.00030712,2]
[381143430,1756074638776,-43120.44092419,0.0003099,2]
[381143431,1756074638785,-151.0,0.00031,120]
[381143432,1756074638795,-260.0,0.0003126,2]
[381143433,1756074638804,-360.0,0.00031808,2]
[381143434,1756074638813,-948.21922724,0.00031986,17]
[381143435,1756074638822,-421.86,0.00032007,3]
[381143436,1756074638832,-460.0,0.00032356,2]
[381143437,1756074638841,-5000.0,0.00032647,4]
[381143438,1756074638850,-560.0,0.00032904,2]
[381143439,1756074638859,-560.0,0.00033007,2]
[381143440,1756074638869,-280.307055,0.00033165,2]
[381143441,1756074638879,-506.25103804,0.00033165,2]
[381143442,1756074638888,-660.0,0.00033451,2]
[381143443,1756074638896,-151.0,0.000336,10]
[381143444,1756074638906,-948.21922724,0.00033712,21]
[381143445,1756074638915,-780.0,0.00033999,2]
[381143446,1756074638924,-151.0,0.000342,120]
[381143447,1756074638933,-151.0,0.000343,18]
[381143448,1756074638942,-151.0,0.000351,16]
[381143449,1756074638951,-948.21922724,0.00035439,24]
[381143450,1756074638960,-783.0,0.0003555,2]
[381143451,1756074638970,-151.0,0.000358,15]
[381143452,1756074638979,-163.87538169,0.000359,5]
[381143453,1756074638988,-260.91275485,0.000359,5]
[381143454,1756074638997,-543.59259108,0.000359,5]
[381143455,1756074639006,-500.0,0.000359,5]
[381143456,1756074639018,-500.0,0.000359,5]
[381143457,1756074639027,-500.39775222,0.000359,5]
[381143458,1756074639036,-500.0,0.000359,5]
[381143460,1756074639046,-501.07116851,0.000359,5]
[381143461,1756074639055,-500.06002785,0.000359,5]
[381143462,1756074639064,-500.0,0.000359,5]
[381143463,1756074639073,-200.0,0.000359,5]
[381143464,1756074639082,-1000.0,0.00036448,5]
[381143465,1756074639091,-1000.0,0.00036448,5]
[381143466,1756074639100,-198.62478898,0.00036448,5]
[381143467,1756074639109,-151.0,0.000365,18]
[381143468,1756074639118,-401.04827771,0.00036585,5]
[381143469,1756074639127,-1500.0,0.00036996,5]
[381143470,1756074639136,-948.21922724,0.00037166,28]
[381143471,1756074639146,-169.08,0.000372,7]
[381143472,1756074639155,-151.0,0.000373,15]
[381143473,1756074639164,-151.0,0.000375,120]
[381143474,1756074639173,-2000.0,0.00037544,5]
[381143475,1756074639183,-72076.76877949,0.0003801,5]
[381143476,1756074639192,-581.83210946,0.00038092,5]
[381143477,1756074639201,-1097.0,0.0003829,2]
[381143478,1756074639210,-200.0,0.00038639,120]
[381143479,1756074639220,-14108.9,0.000387,14]
[381143480,1756074639229,-948.21922724,0.00038892,32]
[381143481,1756074639238,-99835.25668759,0.000389,60]
[381143482,1756074639247,-5719.51,0.000389,14]
[381143483,1756074639256,-280.307055,0.00039654,2]
[381143484,1756074639268,-3814.89995641,0.00039673,2]
[381143485,1756074639277,-512.0,0.00039711,2]
[381143486,1756074639287,-82351.18965213,0.0004,30]
[381143487,1756074639296,-417.15472785,0.0004,30]
[381143488,1756074639304,-151.0,0.0004,30]
[381143489,1756074639314,-151.0,0.0004,30]
[381143490,1756074639323,-152.362666,0.0004,30]
[381143491,1756074639332,-151.0,0.0004,30]
[381143492,1756074639341,-151.0,0.0004,30]
[381143493,1756074639351,-151.0,0.0004,30]
[381143494,1756074639359,-269.512267,0.0004,15]
[381143495,1756074639369,-269.512267,0.0004,15]
[381143496,1756074639378,-269.512267,0.0004,15]
[381143497,1756074639387,-269.512267,0.0004,15]
[381143498,1756074639396,-949.174368,0.0004,30]
[381143499,1756074639405,-949.174368,0.0004,30]
[381143500,1756074639415,-284.24196,0.0004,30]
[381143501,1756074639425,-949.174368,0.0004,30]
[381143503,1756074639434,-949.174368,0.0004,30]
[381143504,1756074639444,-151.0,0.0004,30]
[381143505,1756074639454,-151.0,0.0004,30]
[381143507,1756074639463,-151.0,0.0004,30]
[381143508,1756074639473,-151.0,0.0004,30]
[381143509,1756074639482,-151.0,0.0004,30]
[381143510,1756074639492,-151.0,0.0004,30]
[381143511,1756074639502,-160.0,0.0004,30]
[381143512,1756074639514,-569.586279,0.0004,30]
[381143513,1756074639523,-569.586279,0.0004,30]
[381143514,1756074639533,-1605.232971,0.0004,30]
[381143515,1756074639542,-569.586279,0.0004,30]
[381143516,1756074639551,-569.586279,0.0004,30]
[381143517,1756074639561,-284.156369,0.0004,30]
[381143519,1756074639572,-1605.232971,0.0004,30]
[381143521,1756074639582,-1605.232971,0.0004,30]
[381143522,1756074639591,-151.0,0.0004,30]
[381143523,1756074639601,-500.0,0.00040083,30]
[381143524,1756074639610,-20484.5501999,0.00040083,2]
[381143525,1756074639619,-512.0,0.00040203,2]